Cogmind - Beta 16 @@@ ROGUE MODE // 2025.12.28 @ 17:46:54 Player: skilledspacepolice Result: Destroyed by 7F-JP9(R) with Subdweller Machine Gun Performance ------------- Evolutions (0) 0 Regions Visited (2) 400 Robots Destroyed (14) 70 Value Destroyed (492) 492 Prototype IDs (0) 0 Alien Tech Used (0) 0 Bonus (0) 0 TOTAL SCORE: 962 Bonus ------- None Cogmind --------- Core Integrity 0/250 Matter 256/300 Energy 200/200 System Corruption 1% Temperature Cool (0) Movement Rolling (110) Location -10/Subcaves Parts ------- > --- POWER (1) -------- Subdweller Power Source > --- PROPULSION (2) --- Subdweller Monowheel Subdweller Monowheel > --- UTILITY (2) ------ Small Storage Unit Signal Interpreter > --- WEAPON (2) ------- (None) > --- INVENTORY (8) ---- Subdweller Power Source Subdweller Power Source Subdweller Optics Subdweller Optics Peak State ------------ > --- POWER ------------ Subdweller Power Source > --- PROPULSION ------- Subdweller Monowheel Subdweller Monowheel > --- UTILITY ---------- Small Storage Unit Makeshift Targeting Computer > --- WEAPON ----------- Subdweller Beam Cannon Subdweller Machine Gun > --- INVENTORY -------- Light Ion Engine Subdweller Power Source Subdweller Optics Subdweller Optics Signal Interpreter Scrap Shield [Rating: 14] Favorites ----------- Power Subdweller Power Source Engine Subdweller Power Source Propulsion Compact Wheel Treads Light Treads Wheel Compact Wheel Utility Small Storage Unit Device Improved Heat Sink Storage Small Storage Unit Processor Makeshift Targeting Computer Protection Scrap Shield Weapon Medium Laser Energy Gun Medium Laser Energy Cannon Subdweller Beam Cannon Ballistic Gun Subdweller Machine Gun Launcher Subdweller Shrapnel Launcher Build | -11 -10 -10 ------- Run | Yrd Mat Sub Slots Evolved . | . . . Power . | . . . Propulsion . | . . . Utility . | . . . Weapon . | . . . Parts Attached 23 | 6 4 13 Power 5 | 1 1 3 Engine 5 | 1 1 3 Core . | . . . Reactor . | . . . Propulsion 7 | 2 2 3 Treads 2 | 2 . . Leg . | . . . Wheel 5 | . 2 3 Hover . | . . . Flight . | . . . Utility 5 | 1 1 3 Device 1 | . 1 . Storage 1 | 1 . . Processor 2 | . . 2 Hackware . | . . . Protection 1 | . . 1 Artifact . | . . . Weapon 6 | 2 . 4 Energy Gun 2 | 2 . . Energy Cannon 1 | . . 1 Ballistic Gun 2 | . . 2 Ballistic Cannon . | . . . Launcher 1 | . . 1 Special Weapon . | . . . Impact Weapon . | . . . Slashing Weapon . | . . . Piercing Weapon . | . . . Special Melee Weapon . | . . . Unidentified Prototypes . | . . . Parts Lost 11 | . 1 10 Power 2 | . 1 1 Propulsion 3 | . . 3 Utility 1 | . . 1 Weapon 5 | . . 5 Highest Loss Streak 3 | . 1 3 To Critical Strikes 1 | . . 1 Average Backups 2 | 1 . 4 Power 1 | . . 1 Propulsion . | . . . Utility 1 | . . 2 Weapon . | . . . Tool/Special . | . . . Unused Backups 3 | . . 3 Power 1 | . . 1 Propulsion . | . . . Utility 2 | . . 2 Weapon . | . . . Tool/Special . | . . . Average Slot Usage (%) 85 | . 94 81 Engine 12 | . 13 12 Treads 4 | . 13 . Wheel 19 | . 14 21 Device 4 | . 9 2 Storage 13 | . 14 13 Processor 4 | . . 7 Energy Gun 13 | . 28 7 Energy Cannon 4 | . . 6 Ballistic Gun 5 | . . 8 Launcher 1 | . . 1 Peak Build Rating 14 | 6 9 14 Average Rating 8 | 4 8 9 On Entrance 5 | . 6 9 Avg Prop Armor Cover (%) 6 | . . 6 Naked Turns . | . . . Heaviest Build 35 | 13 13 35 Greatest Support 40 | 40 40 40 Greatest Overweight (x) 7 | 1 3 7 Average Overweight (x) . | . . . Largest Inventory Capacity 8 | 8 8 8 Average Capacity 7 | 7 8 7 Most Carried 8 | 5 2 8 Average Carried 3 | 1 . 4 Final Capacity 8 | 8 8 8 Final Carried 4 | 1 1 4 Class Distribution -------------------- 73% | Mutant 26% | Scavenger-Mutant Dominant Class ---------------- Mutant | -10/Materials Mutant | -10/Subcaves Resources | -11 -10 -10 ----------- Run | Yrd Mat Sub Matter Collected 416 | 210 65 141 Remotely . | . . . Salvage Created 532 | . 188 344 Parts 26 | . 6 20 Haulers Intercepted . | . . . Recyclers Shooed . | . . . Parts Field Recycled . | . . . Retrieved Matter . | . . . Parts Self-Destructed 5 | . . 5 Prevented . | . . . Parts Restored . | . . . Kills | -11 -10 -10 ------- Run | Yrd Mat Sub Combat Hostiles Destroyed 12 | . 3 9 Guns 6 | . 3 3 Cannons 6 | . . 6 Classes Destroyed 4 | . 3 1 Worker 1 | . 1 . Watcher 1 | . 1 . Grunt 3 | . 3 . Subdweller 9 | . . 9 Best Kill Streak 3 | . 3 2 Combat Bots Only 2 | . 2 2 Max Kills in Single Turn 1 | . 1 1 Gunslinging . | . . . Exploded . | . . . Melee . | . . . Uniques/NPCs Destroyed . | . . . Combat | -11 -10 -10 -------- Run | Yrd Mat Sub Hostile Shots Fired 97 | . 24 73 Missed 31 | . 6 25 Hits 66 | . 18 48 Projectile 66 | . 18 48 AOE 2 | . . 2 Critical Strikes 3 | . . 3 Damage Taken 1340 | . 252 1088 Core 258 | . 18 240 Absorbed by Shields . | . . . Core Remaining (%) 100 | 100 . . Volleys Fired 63 | . 13 50 Largest 2 | . 2 2 Hottest 130 | . 90 130 Shots Fired 97 | . 26 71 Gun 69 | . 26 43 Cannon 27 | . . 27 Launcher 1 | . . 1 Special . | . . . Kinetic 21 | . . 21 Thermal 76 | . 26 50 Explosive . | . . . Electromagnetic . | . . . Robot Hit Streak 23 | . 5 23 Robot Miss Streak 2 | . 2 2 Penetration Max . | . . . Secondary Targets . | . . . Shots Hit Robots 77 | . 18 59 Core Hits 26 | . 9 17 Critical Kills . | . . . Critical Parts Destroyed 1 | . . 1 Critical Strikes 2 | . . 2 Burn 1 | . . 1 Destroy 1 | . . 1 Melee Attacks . | . . . Impact . | . . . Slashing . | . . . Piercing . | . . . Sneak Attacks . | . . . Combat Hostiles . | . . . Follow-up Attacks . | . . . Damage Inflicted 1410 | . 221 1189 Guns 770 | . 221 549 Cannons 640 | . . 640 Explosions . | . . . Melee . | . . . Ramming . | . . . Kinetic 295 | . . 295 Thermal 1115 | . 221 894 Explosive . | . . . Electromagnetic . | . . . Impact . | . . . Slashing . | . . . Piercing . | . . . Highest Corruption 1 | . 1 1 Average Corruption 1 | . 1 1 Corruption Purged . | . . . Corruption Blocked . | . . . Effects 3 | . . 3 Message Errors 1 | . . 1 Heat Flow Errors 1 | . . 1 Data Loss (minor) 1 | . . 1 Overload Shots . | . . . Overflow Damage . | . . . Projectiles . | . . . Explosions . | . . . Melee . | . . . Knockbacks . | . . . Impact . | . . . Kinetic . | . . . Secondary . | . . . Self-Inflicted Damage 9 | . . 9 Shots 1 | . . 1 Rammed . | . . . Targets Rammed . | . . . Kicked . | . . . Crushed . | . . . Highest Temperature 354 | . 354 80 Average Temperature 135 | . 204 11 Received Heat Transfer 180 | . 144 36 Siege Activations . | . . . Martial Activations . | . . . Shielding Activations . | . . . Robots Disrupted . | . . . Combat Hostiles . | . . . Robots Corrupted . | . . . Combat Hostiles . | . . . Parts Fried . | . . . Impact Corruptions . | . . . Robots Melted . | . . . Combat Hostiles . | . . . Parts Melted 4 | . 1 3 Heat Transferred 2213 | . 583 1630 Parts Sabotaged . | . . . Parts Stolen . | . . . Parts Stripped . | . . . Power Chain Reactions . | . . . Alert | -11 -10 -10 ------- Run | Yrd Mat Sub Maximum Alert Level . | . . . Low Security (%) 100 | 100 100 . Level 1 . | . . . Level 2 . | . . . Level 3 . | . . . Level 4 . | . . . Level 5 . | . . . High Security . | . . . Max Security . | . . . Peak Influence 45 | . 45 . Initial . | . . . Average 11 | . 13 . Influence Increases 89 | . 89 . Destroy 0b10 Robot/C 60 | . 60 . Destroy 0b10 Robot/NC 10 | . 10 . Destroy Leader 12 | . 12 . Successful Hack 7 | . 7 . Influence Decreases 89 | . 89 . Time Decay 79 | . 79 . Lost Part 10 | . 10 . Squads Dispatched 1 | . 1 . Investigation 1 | . 1 . Extermination . | . . . Reinforcement . | . . . Assault . | . . . Garrison . | . . . Intercept . | . . . Searches Triggered . | . . . Construction Impeded . | . . . Haulers Reinforced . | . . . Active Scanning Responses . | . . . Cargo Convoy Interrupts . | . . . Stealth | -11 -10 -10 --------- Run | Yrd Mat Sub Distress Signals 1 | . 1 . Communications Jammed . | . . . Distress Signals . | . . . Times Spotted 14 | . 4 10 Peak Tracking Total 2 | . 2 2 Tactical Retreats . | . . . Traps | -11 -10 -10 ------- Run | Yrd Mat Sub Traps Triggered . | . . . Indirectly . | . . . Trap Hack Attempts . | . . . Triggered . | . . . Disarmed . | . . . Reprogrammed . | . . . Reused . | . . . Traps Extracted . | . . . Installed . | . . . Triggered . | . . . Machines | -11 -10 -10 ---------- Run | Yrd Mat Sub Machines Disabled . | . . . Max in Single Turn . | . . . Machines Repaired . | . . . Machines Dismantled . | . . . Machines Sabotaged . | . . . Overloaded Fab Kills . | . . . Hacking | -11 -10 -10 --------- Run | Yrd Mat Sub Machines Accessed 2 | . 2 . Terminals 1 | . 1 . Fabricators . | . . . Repair Stations . | . . . Recycling Units 1 | . 1 . Scanalyzers . | . . . Garrison Access . | . . . Total Hacks 3 | . 3 . Successful 2 | . 2 . Failed 1 | . 1 . Catastrophic 1 | . 1 . Database Lockouts . | . . . Manual . | . . . Terminals 2 | . 2 . Fabricators . | . . . Repair Stations . | . . . Recycling Units 1 | . 1 . Scanalyzers . | . . . Garrison Access . | . . . Terminal Hacks 1 | . 1 . Surveillance Status 1 | . 1 . Fabricator Hacks . | . . . Repair Station Hacks . | . . . Recycling Unit Hacks 1 | . 1 . Report Inventory 1 | . 1 . Scanalyzer . | . . . Garrison Access Hacks . | . . . Unauthorized Hacks . | . . . Terminals . | . . . Fabricators . | . . . Repair Stations . | . . . Recycling Units . | . . . Scanalyzers . | . . . Garrison Access . | . . . Data Cores Recovered . | . . . Used . | . . . Hacking Detections 1 | . 1 . Full Trace Events 1 | . 1 . Feedback Events 1 | . 1 . Corruption 1 | . 1 . Feedback Blocked . | . . . Robot Schematics Acquired . | . . . Robots Built . | . . . Authchips . | . . . Time . | . . . Total Robot Build Rating . | . . . Part Schematics Acquired . | . . . Parts Built . | . . . Authchips . | . . . Time . | . . . Total Part Build Rating . | . . . Part Studies Acquired . | . . . Parts Repaired . | . . . Time . | . . . Parts Recycled . | . . . Recycled Matter . | . . . Retrieved Matter . | . . . Retrieved Components . | . . . Parts Scanalyzed . | . . . Part Schematics Acquired . | . . . Parts Damaged . | . . . Bothacking | -11 -10 -10 ------------ Run | Yrd Mat Sub Used RIF Installer . | . . . Robots Hacked . | . . . Non-combat . | . . . Combat . | . . . Robot Hacks Applied . | . . . Relay Couplers Released . | . . . Fabnet Peak Effective % . | . . . Robots Rewired . | . . . Allies Hacked . | . . . Hacks Repelled . | . . . Allies | -11 -10 -10 -------- Run | Yrd Mat Sub Total Allies . | . . . Largest Group . | . . . Highest-Rated Group . | . . . Highest-Rated Ally . | . . . Total Orders . | . . . Ally Attacks . | . . . Total Damage . | . . . Kills . | . . . Allies Corrupted . | . . . Allies Melted . | . . . Intel | -11 -10 -10 ------- Run | Yrd Mat Sub Active Infowar (turns) . | . . . Robot Analysis Total . | . . . Derelict Logs Recovered 1 | . . 1 Drone Launches . | . . . Drone Recoveries . | . . . Exploration | -11 -10 -10 ------------- Run | Yrd Mat Sub Turns Passed 948 | 61 264 623 Spaces Moved 510 | 46 85 379 Core 38 | 22 3 13 Treads 71 | 24 47 . Legs . | . . . Wheels 401 | . 35 366 Hover . | . . . Flight . | . . . Fastest Speed 50 | 50 100 100 Average Speed 121 | 108 136 119 Slowest Speed 400 | 160 200 400 Overloaded Moves . | . . . Propulsion Burnouts . | . . . Robots Hopped . | . . . Potential Cave-ins . | . . . Cave-ins Triggered . | . . . Exploration Rate (%) 17 | 3 21 27 Regions Visited 2 Branch Regions 1 Pre-discovered Areas . | . . . Known Exits Taken . | . . . Unknown Exits Taken 2 | 1 1 . Scrap Searched . | . . . Spaces Dug . | . . . Terrain Destroyed 17 | . . 17 Melee . | . . . Projectile 4 | . . 4 AOE 13 | . . 13 Terrain Rammed . | . . . Walls Destroyed . | . . . Machines Disabled . | . . . Actions | -11 -10 -10 --------- Run | Yrd Mat Sub Total 745 | 56 207 482 Wait 110 | . 100 10 Move 508 | 45 84 379 Hop . | . . . Pick Up 29 | 5 4 20 Fast Attach 3 | 2 . 1 Attach 19 | 4 4 11 Detach . | . . . Swap 2 | . . 2 Drop 11 | . 2 9 Fire 63 | . 13 50 Melee . | . . . Ram . | . . . Kick . | . . . Crush . | . . . Escape Stasis . | . . . Rewire . | . . . Trap . | . . . Miscellaneous . | . . . Route ------- -11/Scrapyard -10/Materials (discovered 2 exits: [*Min] / [*Sub]) -10/Subcaves (discovered 1 exit: *Mat) History --------- Turn | Location | Event 9 | -11/Scrapyard | Discovered new exit (range 16) 62 | -11/Scrapyard | Entered Materials 150 | -10/Materials | Discovered new exit (range 6) 246 | -10/Materials | Discovered new exit (range 5) 306 | -10/Materials | Build established: Mutant 326 | -10/Materials | Entered Subcaves 561 | -10/Subcaves | Lost 3 parts (1p1n1w) 711 | -10/Subcaves | Ambushed by Subdwellers from Twisted Machinery 745 | -10/Subcaves | Core integrity fell below 50% 803 | -10/Subcaves | Learned Materials stockpile data 890 | -10/Subcaves | Discovered new exit (range 13) 913 | -10/Subcaves | Core integrity fell below 20% 941 | -10/Subcaves | Identified exit to Materials 949 | -10/Subcaves | Destroyed by 7F-JP9(R) with Subdweller Machine Gun Last Messages --------------- Acquired Sml. Storage Unit. Subatomizers dissect the Sub. Optics. Acquired 44 matter. Acquired Sub. Machine Gun. Acquired 10 matter. Subatomizers dissect the Sub. Optics. Dropped Sub. Beam Cannon. Acquired Sub. Shrapnel Launcher. D EX IRTY,AQ4=LSVGBC51B